Cogmind - Beta 11.1 @@@ ROGUE MODE // 2022.12.10 @ 00:42:56 Player: Communism Result: Destroyed by G-34 Mercenary with Small Laser Performance ------------- Evolutions (1) 500 Regions Visited (2) 400 Robots Destroyed (31) 155 Value Destroyed (757) 757 Prototype IDs (0) 0 Alien Tech Used (0) 0 Bonus (0) 0 TOTAL SCORE: 1812 Bonus ------- None Cogmind --------- Core Integrity 0/400 Matter 278/300 Energy 100/100 System Corruption 1% Temperature Cool (6) Movement Core (1350) Ox26 Location -9/Materials Parts ------- > --- POWER (1) -------- (None) > --- PROPULSION (4) --- (None) > --- UTILITY (2) ------ Huge Storage Unit > --- WEAPON (2) ------- (None) > --- INVENTORY (25) --- Ion Engine Improved Flight Unit Improved Flight Unit Compact Battery (200) Compact Battery (200) Compact Battery (200) Compact Battery (200) Core Shielding Shield Generator Shield Generator Improved EM Shotgun Faulty Improved EM Shotgun Medium Laser Advanced Beam Cannon Heavy Assault Rifle Shotgun Improved Assault Rifle Grenade Launcher Peak State ------------ > --- POWER ------------ Improved Ion Engine > --- PROPULSION ------- Carbon-fiber Leg Carbon-fiber Leg Carbon-fiber Leg Carbon-fiber Leg > --- UTILITY ---------- Huge Storage Unit Hardened Light Armor Plating > --- WEAPON ----------- Heavy Assault Rifle Heavy Assault Rifle > --- INVENTORY -------- Ion Engine Improved Flight Unit Improved Flight Unit Compact Battery Compact Battery Compact Battery Compact Battery Core Shielding Shield Generator Shield Generator Improved EM Shotgun Improved EM Shotgun Medium Laser Advanced Beam Cannon Heavy Assault Rifle Shotgun Improved Assault Rifle Grenade Launcher [Rating: 25] Favorites ----------- Power Ion Engine Engine Ion Engine Propulsion Carbon-fiber Leg Leg Carbon-fiber Leg Flight Unit Flight Unit Utility Hardened Light Armor Plating Device Shield Generator Storage Huge Storage Unit Protection Hardened Light Armor Plating Weapon Medium Laser Energy Gun Medium Laser Ballistic Gun Heavy Assault Rifle Launcher Grenade Launcher Build | -11 -10 -9 ------- Run | Scr Mat Mat Slots Evolved 2 | . . 2 Power . | . . . Propulsion 2 | . . 2 Utility . | . . . Weapon . | . . . Parts Attached 37 | 6 18 13 Power 5 | 1 3 1 Engine 5 | 1 3 1 Core . | . . . Reactor . | . . . Propulsion 15 | 2 7 6 Treads . | . . . Leg 12 | 2 4 6 Wheel . | . . . Hover . | . . . Flight 3 | . 3 . Utility 10 | 1 6 3 Device 3 | 1 1 1 Storage 3 | . 1 2 Processor . | . . . Hackware . | . . . Protection 4 | . 4 . Artifact . | . . . Weapon 7 | 2 2 3 Energy Gun 2 | 2 . . Energy Cannon . | . . . Ballistic Gun 3 | . . 3 Ballistic Cannon . | . . . Launcher 2 | . 2 . Special Weapon . | . . . Impact Weapon . | . . . Slashing Weapon . | . . . Piercing Weapon . | . . . Special Melee Weapon . | . . . Unidentified Prototypes . | . . . Parts Lost 9 | . . 9 Power 1 | . . 1 Propulsion 4 | . . 4 Utility 1 | . . 1 Weapon 3 | . . 3 Highest Loss Streak 5 | . . 5 To Critical Strikes . | . . . Average Slot Usage (%) 96 | . 99 92 Engine 12 | . 14 10 Leg 32 | . 27 38 Device 3 | . 4 1 Storage 4 | . . 9 Protection 17 | . 22 10 Energy Gun 10 | . 14 6 Ballistic Gun 3 | . . 8 Launcher 10 | . 13 6 Naked Turns . | . . . Heaviest Build 98 | 8 17 98 Greatest Support 60 | 20 20 60 Greatest Overweight (x) 32 | . 3 32 Average Overweight (x) . | . . 1 Largest Inventory Capacity 25 | 5 25 25 Average Capacity 12 | 5 5 22 Most Carried 18 | 5 5 18 Average Carried 7 | 3 4 12 Final Capacity 25 | 5 5 25 Final Carried 18 | 5 5 18 Class Distribution -------------------- 100% | Mutant Dominant Class ---------------- Mutant | -10/Materials Mutant | -9/Materials Resources | -11 -10 -9 ----------- Run | Scr Mat Mat Matter Collected 870 | 260 222 388 Remotely . | . . . Salvage Created 933 | 64 143 726 Parts 64 | 3 16 45 Haulers Intercepted 2 | . . 2 Recyclers Shooed 1 | . 1 . Parts Field Recycled . | . . . Retrieved Matter . | . . . Parts Self-Destructed . | . . . Prevented . | . . . Kills | -11 -10 -9 ------- Run | Scr Mat Mat Combat Hostiles Destroyed 22 | 1 3 18 Guns 9 | 1 . 8 AOE 13 | . 3 10 Classes Destroyed 8 | 2 1 5 Worker 3 | 1 1 1 Hauler 2 | . . 2 Recycler 2 | . . 2 Watcher 2 | . 2 . Swarmer 6 | . . 6 Grunt 12 | 1 3 8 Duelist 1 | . . 1 Sentry 3 | . . 3 Best Kill Streak 4 | 1 2 4 Combat Bots Only 4 | 1 1 4 Max Kills in Single Turn 3 | 1 2 3 Gunslinging . | . . . Exploded 2 | . 1 2 Melee . | . . . Uniques/NPCs Destroyed . | . . . Combat | -11 -10 -9 -------- Run | Scr Mat Mat Damage Taken 1908 | 10 177 1721 Core 433 | . 26 407 Absorbed by Shields 53 | . . 53 Redirected to Shielding 5 | . 5 . Regen/Repaired (Parts) 136 | . 136 . Core Remaining (%) 94 | 100 89 . Volleys Fired 76 | 5 16 55 Largest 2 | 2 2 2 Hottest 90 | 90 80 80 Shots Fired 119 | 10 23 86 Gun 100 | 10 17 73 Cannon . | . . . Launcher 19 | . 6 13 Special . | . . . Kinetic 58 | . . 58 Thermal 37 | 5 17 15 Explosive 19 | . 6 13 Electromagnetic 5 | 5 . . Robot Hit Streak 15 | 2 2 15 Robot Miss Streak 7 | 1 5 7 Penetration Max . | . . . Secondary Targets . | . . . Shots Hit Robots 62 | 5 8 49 Core Hits 50 | 3 10 37 Critical Kills . | . . . Critical Parts Destroyed . | . . . Critical Strikes 3 | 1 1 1 Burn 3 | 1 1 1 Melee Attacks . | . . . Impact . | . . . Slashing . | . . . Piercing . | . . . Sneak Attacks . | . . . Combat Hostiles . | . . . Follow-up Attacks . | . . . Damage Inflicted 2013 | 66 364 1583 Guns 745 | 66 75 604 Cannons . | . . . Explosions 1254 | . 283 971 Melee . | . . . Ramming 14 | . 6 8 Kinetic 491 | . . 491 Thermal 212 | 24 75 113 Explosive 1254 | . 283 971 Electromagnetic 42 | 42 . . Impact . | . . . Slashing . | . . . Piercing . | . . . Highest Corruption 4 | . 4 1 Average Corruption 2 | . 3 1 Corruption Purged . | . . . Corruption Blocked . | . . . Effects 16 | . 12 4 Message Errors 5 | . 4 1 Matter Fused 1 | . 1 . Heat Flow Errors 4 | . 2 2 Energy Discharges 2 | . 1 1 Data Loss (minor) 2 | . 2 . Misfires 2 | . 2 . Overload Shots . | . . . Overflow Damage 42 | . . 42 Projectiles . | . . . Explosions 42 | . . 42 Melee . | . . . Knockbacks . | . . . Impact . | . . . Kinetic . | . . . Secondary . | . . . Self-Inflicted Damage 51 | . . 51 Shots 3 | . . 3 Rammed . | . . . Targets Rammed 3 | . 1 2 Kicked 3 | . 1 2 Crushed . | . . . Highest Temperature 380 | 96 380 111 Average Temperature 81 | 43 144 24 Received Heat Transfer 712 | 6 102 604 Siege Activations . | . . . Robots Corrupted . | . . . Combat Hostiles . | . . . Parts Fried . | . . . Impact Corruptions . | . . . Robots Melted . | . . . Combat Hostiles . | . . . Parts Melted . | . . . Heat Transferred 851 | 148 296 407 Parts Sabotaged . | . . . Parts Stolen . | . . . Parts Stripped . | . . . Power Chain Reactions . | . . . Missiles Intercepted . | . . . Alert | -11 -10 -9 ------- Run | Scr Mat Mat Peak Influence 336 | 25 119 336 Initial 16 | . 16 . Average 100 | 12 40 187 Maximum Alert Level 1 | . . 1 Low Security (%) 73 | 100 100 36 Level 1 26 | . . 63 Level 2 . | . . . Level 3 . | . . . Level 4 . | . . . Level 5 . | . . . High Security . | . . . Max Security . | . . . Squads Dispatched 4 | . 3 1 Investigation 2 | . 2 . Extermination . | . . . Reinforcement 2 | . 1 1 Assault . | . . . Garrison . | . . . Intercept . | . . . Searches Triggered . | . . . Construction Impeded . | . . . Haulers Reinforced . | . . . Active Scanning Responses . | . . . Cargo Convoy Interrupts . | . . . Stealth | -11 -10 -9 --------- Run | Scr Mat Mat Distress Signals 5 | . 3 2 Communications Jammed . | . . . Distress Signals . | . . . Times Spotted 40 | 1 5 34 Peak Tracking Total 5 | 1 3 5 Tactical Retreats 2 | . . 2 Traps | -11 -10 -9 ------- Run | Scr Mat Mat Traps Triggered 4 | . 3 1 Indirectly . | . . . Trap Hack Attempts . | . . . Triggered . | . . . Disarmed . | . . . Reprogrammed . | . . . Reused . | . . . Traps Extracted . | . . . Installed . | . . . Triggered . | . . . Machines | -11 -10 -9 ---------- Run | Scr Mat Mat Machines Disabled 3 | . 1 2 Max in Single Turn 2 | . 1 2 Machines Sabotaged . | . . . Garrisons Compromised . | . . . Overloaded Fab Kills . | . . . Hacking | -11 -10 -9 --------- Run | Scr Mat Mat Machines Accessed 9 | . 7 2 Terminals 5 | . 4 1 Fabricators . | . . . Repair Stations 1 | . 1 . Recycling Units 3 | . 2 1 Scanalyzers . | . . . Garrison Access . | . . . Total Hacks 24 | . 21 3 Successful 20 | . 17 3 Failed 4 | . 4 . Catastrophic . | . . . Database Lockouts . | . . . Manual . | . . . Terminals 9 | . 7 2 Fabricators . | . . . Repair Stations 5 | . 5 . Recycling Units 10 | . 9 1 Scanalyzers . | . . . Garrison Access . | . . . Terminal Hacks 8 | . 6 2 Record 2 | . 1 1 Robot Analysis 1 | . 1 . Emergency Access Points 1 | . 1 . Locate Traps 1 | . 1 . Hauler Manifests 1 | . 1 . Zone Layout 2 | . 1 1 Fabricator Hacks . | . . . Repair Station Hacks 4 | . 4 . Scan Component 2 | . 2 . Repair 2 | . 2 . Recycling Unit Hacks 8 | . 7 1 Recycle Component 2 | . 2 . Process 1 | . 1 . Report Inventory 3 | . 2 1 Retrieve Matter 1 | . 1 . Retrieve Components 1 | . 1 . Scanalyzer . | . . . Garrison Access Hacks . | . . . Unauthorized Hacks . | . . . Terminals . | . . . Fabricators . | . . . Repair Stations . | . . . Recycling Units . | . . . Scanalyzers . | . . . Garrison Access . | . . . Data Cores Recovered . | . . . Used . | . . . Hacking Detections 5 | . 4 1 Full Trace Events 2 | . 2 . Feedback Events . | . . . Feedback Blocked . | . . . Robot Schematics Acquired . | . . . Robots Built . | . . . Authchips . | . . . Time . | . . . Total Robot Build Rating . | . . . Part Schematics Acquired . | . . . Parts Built . | . . . Authchips . | . . . Time . | . . . Total Part Build Rating . | . . . Parts Repaired 2 | . 2 . Time 58 | . 58 . Parts Recycled 2 | . 2 . Recycled Matter 66 | . 66 . Retrieved Matter 66 | . 66 . Retrieved Components 10 | . 10 . Parts Scanalyzed . | . . . Part Schematics Acquired . | . . . Parts Damaged . | . . . Bothacking | -11 -10 -9 ------------ Run | Scr Mat Mat Used RIF Installer . | . . . Robots Hacked . | . . . Non-combat . | . . . Combat . | . . . Robot Hacks Applied . | . . . Relay Couplers Released . | . . . Fabnet Peak Effective % . | . . . Robots Rewired . | . . . Allies Hacked . | . . . Hacks Repelled . | . . . Allies | -11 -10 -9 -------- Run | Scr Mat Mat Total Allies . | . . . Largest Group . | . . . Highest-Rated Group . | . . . Highest-Rated Ally . | . . . Total Orders . | . . . Ally Attacks . | . . . Total Damage . | . . . Kills . | . . . Allies Corrupted . | . . . Allies Melted . | . . . Intel | -11 -10 -9 ------- Run | Scr Mat Mat Robot Analysis Total 1 | . 1 . Derelict Logs Recovered . | . . . Drone Launches . | . . . Drone Recoveries . | . . . Exploration | -11 -10 -9 ------------- Run | Scr Mat Mat Turns Passed 3219 | 211 1656 1352 Spaces Moved 2074 | 164 1304 606 Core 29 | 25 . 4 Treads . | . . . Legs 2041 | 139 1300 602 Wheels . | . . . Hover . | . . . Flight 4 | . 4 . Fastest Speed 50 | 50 117 120 Average Speed 140 | 109 120 191 Slowest Speed 1650 | 120 290 1650 Overloaded Moves . | . . . Propulsion Burnouts . | . . . Robots Hopped . | . . . Cave-ins Triggered . | . . . Exploration Rate (%) 46 | 8 100 32 Regions Visited 2 Branch Regions . Pre-discovered Areas . | . . . Known Exits Taken . | . . . Unknown Exits Taken 2 | 1 1 . Scrap Searched . | . . . Spaces Dug . | . . . Terrain Destroyed 109 | . 42 67 Melee . | . . . Projectile . | . . . AOE 109 | . 42 67 Terrain Rammed . | . . . Walls Destroyed . | . . . Machines Disabled . | . . . Actions | -11 -10 -9 --------- Run | Scr Mat Mat Total 2263 | 185 1370 708 Wait 7 | . . 7 Move 2072 | 163 1303 606 Hop . | . . . Pick Up 49 | 11 18 20 Fast Attach . | . . . Attach 12 | 6 3 3 Detach . | . . . Swap 25 | . 15 10 Drop 19 | . 14 5 Fire 76 | 5 16 55 Melee . | . . . Ram . | . . . Kick 3 | . 1 2 Crush . | . . . Escape Stasis . | . . . Rewire . | . . . Trap . | . . . Miscellaneous . | . . . Route ------- -11/Scrapyard -10/Materials (discovered 4 exits: *Mat x3 / [*Min]) -9/Materials (discovered 2 exits: [*Mat] / [*Min]) History --------- Turn | Location | Event 2 | -11/Scrapyard | Met Revision 17 107 | -11/Scrapyard | Discovered new exit (range 8) 212 | -11/Scrapyard | Entered Materials 308 | -10/Materials | Build established: Mutant 432 | -10/Materials | Met 8R-AWN 437 | -10/Materials | Discovered new exit (range 15) 669 | -10/Materials | Discovered new exit (range 15) 908 | -10/Materials | Repaired Grenade Launcher 952 | -10/Materials | Repaired Hrd. Light Armor Plating 1020 | -10/Materials | Discovered new exit (range 12) 1367 | -10/Materials | Discovered new exit (range 15) 1868 | -10/Materials | Entered another Materials area 1868 | -9/Materials | Evolved 2 slots: Propulsion x2 2488 | -9/Materials | Discovered new exit (range 6) 2866 | -9/Materials | Discovered new exit (range 12) 3151 | -9/Materials | Core integrity fell below 50% 3206 | -9/Materials | Core integrity fell below 20% 3208 | -9/Materials | Lost 5 parts (1p2n1u1w) 3220 | -9/Materials | Destroyed by G-34 Mercenary with Small Laser Last Messages --------------- 03133_ K-01 Serf collects debris. 03133_ R-06 Scavenger collects EM Shotgun. 03136_ K-01 Serf collects debris. 03137_ Kicked K-01 Serf out of the way. 03137_ R-06 Scavenger collects EM Shotgun. 03141_ EQ4HNJ:|X 8OY:T7:ZSEYYBVMBTJI=UITC 03141_ K-01 Serf collects debris. 03142_ Carbon-fiber Leg destroyed. 03167_ R-06 Scavenger collects Wheel. 03169_ Hrd. Light Armor Plating destroyed. 03171_ Hvy. Assault Rifle destroyed. 03177_ Imp. Ion Engine destroyed. 03180_ ALERT: Hostiles spotted, dispatching reinforcements to Terminal M006. 03190_ W-16 Scout sends out distress signal. 03207_ G-47 Trooper destroyed. 03208_ K-01 Serf collects debris. 03214_ Hvy. Assault Rifle destroyed. 03215_ S-10 Pest destroyed. [Achievement: First Step to Greatness] Map ----- +----------------------------------------------------+ | ?????????????????????????????????????????? # | | ????????????????????????????????????????######## | | ????????????????????????????????????????#[ # | | ????????????????????????????????????????# # | | ????????????????????????????????????????# " "" + | | ????????????????????????????????????????# "R"" # | | ????????????????? ????????????????????# """" # | | ????????????????# #???????????????????# # | | ??????????????""" ???????????????????######## | | ??????????????? #?????????????????######### | | ???????????????| ##########????????# # | | ??????????????"" < # #???????## + | | ???????????????! # """ #???????## # | | ????########??? # " ################## | | ????# #????" # ## ! | | ????# #????# ## ## [= | | ????# """ #????# ## ## = | | ????# """ #????# ## " ## ############# | | ????# ""%= #????# ## S"" ## #??## #* | | #???# =* = #???## ## [*" ## ############# | | #######+####### % ##/########t # ! #????# | | ! = ks= [[[ # #????# | | ! *%=% [ # ]![ !#????# | | %!^ ^ # ]![ #????# | | #############%# ####gg [ + ]! #????# | | #????????????# ##########@ ^ # #????# | | ?????????????# # # ^ #### ###??### | | ?????????????# # # ########### | | ?????????????# # = # | | ?????????????# # + ""T"" | | ?????????????# # # """"" | | ?????????????# # ###################### | | ?????????????# # #??????????????????#### | | ?????????????# # [ #???????????????#### # | | ?????????????# # #??????????????? # | | ?????????????? ##########????????????????? + | | ?????????????? ???????????????????????????? # | | ?????????????? ???????????????????????????? # | | ?????????????? ???????????????????????????##### | | ?????????????? ???????????????????????????????# | | ?????????????? ???????????????????????????????# | | ?????????????? ????????????????????? # | | ???????????????????????????????????? + | | ???????????????????????????????????? #^ | | ??????????????????????????????????????????????# | | ??????????????????????????????????????????????# | | ???????????????????????????????????????????? | | ?????????????????????????????????????????? | | ????????????????????????????????????????? | | ????????????????????????????????????????########+# | +----------------------------------------------------+ Best States ------------- Heat Dissipation 35 Energy Generation 12 Energy Capacity 265 Matter Stores 300 Matter Capacity 300 Sight Range 16 Terrain Scan Density 10 Armor Coverage 150 Core Shielding 20 Evasion (%) 55 Item Schematics ----------------- None Robot Schematics ------------------ None Fabricated ------------ Nothing Alien Tech Used ----------------- None Achievements -------------- Crack Shot First Step to Greatness Loot Pinata Maybe Next Time I'll Detach My Launcher Part-time Mechanic Shopping List Storm Trooper Uninvited Guest Challenges ------------ None Game ------ Seed SigixExperimentalShielding Manual? 0 Play Time 00:59:44 Cumulative 1.9 hours Start 2022.12.09 @ 23:34:03 End 2022.12.10 @ 00:42:56 Sessions 1 Manual Loads 0 Difficulty Rogue Special Mode None Game No. 1 Rogue 1 Adventurer 0 Explorer 0 Win Type - Total 0 Types 0/0/0/0/0/0/0/0/0 Lore% 0 Gallery% 1 Achievement% 3 Wizard Run 0 Options --------- ASCII 0 Keyboard 0 Movement Arrows Keybinds 0 Fullscreen 1 Font 18/Terminus Map View 76x50 Tactical HUD 1 Map Filters NONE Filters NONE Steam 1 RUN: 171e0b7d-24f2-4654-8c99-8946e20f6773